bitfinex/quotes_ETHUSD_20241217
["timestamp","ask_amount","ask_price","bid_price","bid_amount"]
[1734408700986,14.19362364,4017.6,4017.4,15.0883]
[1734408701326,2.33356236,4017.5,4017.4,15.0883]
[1734408701884,2.33356236,4017.5,4017.4,18.0883]
[1734408702237,2.33356236,4017.5,4017.4,18.12069013]
[1734408703717,3.88356236,4017.5,4017.4,18.12069013]
[1734408704284,12.78674749,4017.5,4017.4,18.12069013]
[1734408706996,14.33674749,4017.5,4017.4,18.12069013]
[1734408708201,14.33674749,4017.5,4017.4,12.88371366]
[1734408708414,2.49001,4016.1,4011.7,1.2881376]
[1734408708651,2.49001,4016.1,4007.5,5.37]
[1734408708652,0.25,4012.9,4012.8,1.55450069]
[1734408708853,0.25,4012.3,4005.4,1.26199151]
[1734408709018,2.57997774,4008.5,4006.7,0.8071]
[1734408709220,3.61196884,4007.1,4006.9,0.0821626]
[1734408709523,3.61196884,4007.1,4006.9,0.0813626]
[1734408709524,4.26612051,4007.0,4006.9,0.0813626]
[1734408709723,11.05818782,4007.0,4006.9,0.0813626]
[1734408709927,6.80609847,4007.0,4006.9,0.0813626]
[1734408710253,11.46143905,4007.0,4006.9,0.0813626]
[1734408710461,11.46143905,4007.0,4002.1,1.29947045]
[1734408710762,11.04700791,4007.3,4006.9,0.17455264]
[1734408710980,5.07382776,4007.2,4007.0,38.122047]
[1734408711121,5.07382776,4007.1,4006.9,0.17455264]
[1734408711320,5.97329347,4007.7,4007.0,38.122047]
[1734408711556,3.37344998,4007.6,4007.0,38.04815355]
[1734408711877,7.9803159,4008.9,4006.4,0.17455264]
[1734408711878,3.57023741,4007.5,4007.1,2.01999058]
[1734408712020,0.5,4008.9,4007.2,38.048154]
[1734408712021,3.06028061,4007.3,4007.2,38.048154]
[1734408712223,0.5,4008.9,4006.4,0.17455264]
[1734408712224,0.25,4009.7,4006.5,38.048154]
[1734408712469,8.95,4010.0,4008.1,0.25]
[1734408712663,7.7303159,4010.8,4008.2,38.298154]
[1734408712968,2.03687438,4010.8,4008.5,0.55]
[1734408713170,8.95,4011.1,4008.7,0.55]
[1734408713171,2.03687438,4011.1,4008.7,0.55]
[1734408713317,2.03687438,4011.2,4008.8,38.048154]
[1734408713526,2.03687438,4011.3,4009.1,0.55]
[1734408713797,0.7915,4011.8,4009.0,0.8071]
[1734408713798,2.03687438,4011.7,4009.3,0.55]
[1734408714049,2.03687438,4011.9,4009.5,0.55]
[1734408714275,8.95,4011.8,4009.7,0.55]
[1734408714437,10.98687438,4012.1,4009.9,3.55]
[1734408714638,10.98687438,4012.1,4010.1,4.3571]
[1734408714839,0.7915,4012.6,4010.3,3.55]
[1734408714840,2.03687438,4012.4,4010.3,3.55]
[1734408715180,8.95,4012.6,4010.5,3.55]
[1734408715465,8.95,4012.6,4010.7,3.55]
[1734408715673,2.03687438,4012.8,4010.9,3.55]
[1734408715891,2.03687438,4012.8,4011.1,0.55]
[1734408716098,2.03687438,4012.9,4011.1,0.55]
[1734408716390,2.54104223,4013.1,4011.1,0.55]
[1734408716391,2.03687438,4013.1,4011.4,0.55]
[1734408716556,2.49466604,4013.0,4011.5,3.0]
[1734408716885,0.45779166,4013.0,4011.4,0.55]
[1734408717195,2.03244335,4013.1,4011.4,0.55]
[1734408717340,2.03244335,4013.0,4011.4,0.55]
[1734408717546,2.03244335,4013.0,4010.2,0.55]
[1734408717775,2.06359675,4012.9,4010.2,0.55]
[1734408717998,2.03244335,4012.4,4010.3,0.13571]
[1734408718146,2.06360119,4012.3,4010.3,0.13571]
[1734408718346,1.52329507,4012.1,4010.3,0.13571]
[1734408718775,1.52329507,4011.9,4010.3,0.13571]
[1734408718944,1.52329507,4011.7,4010.1,0.8071]
[1734408719143,1.52329507,4011.6,4010.1,0.8071]
[1734408719397,1.01494816,4011.5,4010.1,0.8071]
[1734408719547,9.96494816,4011.6,4010.2,38.048154]
[1734408719744,9.96494816,4011.6,4010.1,0.8071]
[1734408719983,8.95,4011.6,4010.1,0.8071]
[1734408720473,1.52329507,4011.9,4010.1,0.8071]
[1734408720474,1.01494816,4011.8,4010.3,3.0]
[1734408720753,8.95,4011.9,4010.4,38.048154]
[1734408722860,8.95,4011.9,4010.5,3.0]
[1734408723143,8.95,4011.9,4010.6,38.048154]
[1734408723397,8.95,4011.9,4010.1,0.8071]
[1734408723398,8.95,4011.9,4010.5,3.0]
[1734408723554,8.95,4011.9,4010.7,3.0]
[1734408723759,8.95,4011.9,4010.9,3.0]
[1734408723973,0.08766768,4011.8,4011.1,3.0]
[1734408724173,0.08766768,4011.8,4011.2,38.048154]
[1734408724514,0.08766768,4011.8,4011.1,36.43889216]
[1734408724693,0.08766768,4011.8,4011.2,36.438893]
[1734408725008,0.08766768,4011.8,4011.3,31.465833]
[1734408725312,0.08766768,4011.8,4011.4,23.352422]
[1734408725461,0.08766768,4011.8,4011.5,22.661104]
[1734408725667,0.08766768,4011.8,4011.6,19.653364]
[1734408725864,0.08766768,4011.8,4011.7,15.438025]
[1734408726111,0.08766768,4011.8,4011.7,14.000145]
[1734408726412,0.08766768,4011.8,4011.7,10.63972]
[1734408726783,0.08766768,4011.8,4011.7,13.63972]
[1734408727378,0.08766768,4011.8,4011.7,2.397049]
[1734408727912,0.55,4011.6,4010.1,0.8071]
[1734408728121,0.55,4011.4,4009.2,0.8056]
[1734408728270,8.95,4011.2,4009.2,0.8056]
[1734408728611,8.95,4011.0,4007.8,0.25]
[1734408728777,0.08766768,4010.9,4007.8,0.5]
[1734408728978,0.90376677,4010.8,4008.3,0.25]
[1734408729297,0.08766768,4010.7,4008.4,33.673331]
[1734408729500,0.08766768,4010.7,4008.3,33.923331]
[1734408729673,0.08766768,4010.7,4008.4,36.673331]
[1734408729877,0.08766768,4010.7,4008.5,33.673331]
[1734408730096,0.08766768,4010.7,4008.6,3.0]
[1734408730410,9.03766768,4010.7,4008.8,3.0]
[1734408730582,9.03766768,4010.7,4009.0,3.0]
[1734408730780,9.03766768,4010.7,4009.2,3.0]
[1734408730981,9.03766768,4010.7,4009.3,33.673331]
[1734408731198,9.03766768,4010.7,4009.4,3.0]
[1734408731413,0.08766768,4010.7,4009.4,3.0]
[1734408731712,0.08766768,4010.7,4008.7,0.55]
[1734408731713,0.08766768,4010.7,4009.6,3.0]
[1734408731868,0.08766768,4010.7,4009.8,3.0]
[1734408732063,0.08766768,4010.7,4009.9,21.853607]
[1734408732305,9.7061,4010.5,4008.1,0.8056]
[1734408732465,8.95,4010.3,4008.1,0.8056]
[1734408732670,1.10133905,4010.2,4008.1,0.8056]
[1734408732981,8.95,4010.1,4008.1,0.8056]
[1734408733324,0.7561,4010.5,4008.1,0.8056]
[1734408733325,0.08766768,4010.0,4008.2,33.673331]
[1734408734124,0.08766768,4010.0,4008.3,3.0]
[1734408734329,0.08766768,4010.0,4008.6,0.55]
[1734408734568,0.08766768,4010.0,4008.9,0.7724]
[1734408734768,0.08766768,4010.0,4009.2,0.55]
[1734408735050,0.08766768,4010.0,4009.4,3.55]
[1734408735258,0.08766768,4010.0,4009.6,3.55]
[1734408735459,0.08766768,4010.0,4009.8,3.55]
[1734408735663,0.08766768,4010.0,4009.9,37.223331]
[1734408746139,0.08766768,4010.0,4009.9,37.995731]
[1734408752357,0.08766768,4010.0,4009.9,38.2290391]
[1734408752561,0.8312,4011.8,4010.0,3.55]
[1734408752786,0.8312,4011.8,4009.9,34.445731]
[1734408752787,0.8312,4011.8,4010.2,3.55]
[1734408753002,0.03115908,4011.7,4010.4,3.55]
[1734408753159,0.8312,4011.8,4010.5,33.673331]
[1734408753363,0.8312,4011.8,4010.6,3.0]
[1734408753583,0.8312,4011.8,4010.7,33.673331]
[1734408753770,0.8312,4011.8,4010.8,3.0]
[1734408753971,0.8312,4011.8,4010.9,33.673331]
[1734408754201,0.8312,4011.8,4011.0,3.0]
[1734408754420,0.8312,4011.8,4011.0,36.673331]
[1734408754656,0.8312,4011.8,4011.2,3.0]
[1734408754774,1.01494816,4012.1,4011.3,32.406064]
[1734408754978,8.95,4012.2,4011.4,3.0]
[1734408755203,8.95,4012.2,4011.4,35.63625]
[1734408755417,8.95,4012.2,4011.6,3.0]
[1734408755621,1.79524816,4012.4,4011.8,3.0]
[1734408755788,2.13520853,4012.3,4012.0,3.0]
[1734408756126,0.7803,4012.4,4012.1,17.272603]
[1734408756305,2.13737496,4012.3,4012.2,13.169602]
[1734408756505,2.13737496,4012.3,4011.9,3.0]
[1734408756690,0.85494998,4012.2,4012.0,21.752323]
[1734408756893,10.74524816,4012.4,4010.5,32.63625]
[1734408757092,2.1373709,4012.3,4010.6,0.55]
[1734408757290,1.79524816,4012.4,4010.8,0.55]
[1734408757498,0.85561634,4012.3,4010.9,32.63625]
[1734408757803,0.7803,4012.4,4011.0,1.3341]
[1734408758008,0.7803,4012.4,4011.0,4.3341]
[1734408758224,0.7803,4012.4,4011.2,0.55]
[1734408758378,0.7803,4012.4,4011.3,32.63625]
[1734408758583,0.7803,4012.4,4011.4,3.0]
[1734408758809,0.7803,4012.4,4011.6,3.0]
[1734408759015,0.7803,4012.4,4011.8,3.0]
[1734408759220,0.7803,4012.4,4011.9,32.63625]
[1734408759537,0.7803,4012.4,4012.0,3.0]
[1734408759744,0.7803,4012.4,4012.1,32.63625]
[1734408760039,0.7803,4012.4,4012.2,3.0]
[1734408760242,0.78029993,4012.4,4012.3,31.329805]
[1734408760445,8.95,4013.1,4012.4,3.0]
[1734408760658,8.95,4013.3,4012.4,35.63625]
[1734408760944,8.95,4013.5,4012.6,3.0]
[1734408761130,8.95,4013.4,4011.5,3.0]
[1734408761295,8.95,4013.4,4011.6,0.55]
[1734408761794,8.95,4013.4,4011.4,0.55]
[1734408763210,0.7803,4013.3,4011.4,0.55]
[1734408763415,0.7803,4013.3,4011.5,32.63625]
[1734408763595,0.7803,4013.1,4010.1,0.7841]
[1734408763804,0.7803,4012.9,4010.1,0.7841]
[1734408764499,0.7803,4012.9,4010.3,0.249]
[1734408764707,0.7803,4012.9,4010.5,3.0]
[1734408764908,0.7803,4012.9,4010.7,3.0]
[1734408765157,0.7803,4012.9,4010.9,3.55]
[1734408765308,0.7803,4012.9,4011.1,0.55]
[1734408765512,0.7803,4012.9,4010.9,3.55]
[1734408765513,0.7803,4012.9,4011.3,3.55]
[1734408765750,0.7803,4012.9,4011.5,3.55]
[1734408765941,0.7803,4012.9,4011.7,3.0]
[1734408766254,8.98115251,4012.8,4011.9,3.0]
[1734408766425,0.97614525,4012.7,4012.0,32.63625]
[1734408766625,0.97614525,4012.7,4012.1,3.0]
[1734408766826,0.97614525,4012.7,4012.3,3.0]
[1734408767041,0.97614525,4012.7,4012.5,3.0]
[1734408767226,0.97614525,4012.7,4012.6,14.069797]
[1734408767435,0.97614525,4012.7,4012.6,14.047054]
[1734408768416,0.97614525,4012.7,4012.6,6.185233]
[1734408770466,9.92614525,4012.7,4012.6,6.185233]
[1734408771770,9.92614525,4012.7,4012.6,5.561809]
[1734408772118,9.92614525,4012.7,4012.6,2.150738]
[1734408772315,0.97614525,4012.7,4010.9,3.55]
[1734408772649,8.95,4012.8,4011.1,3.55]
[1734408772849,8.95,4012.8,4011.3,3.0]
[1734408773048,8.95,4012.8,4011.5,3.0]
[1734408773252,8.98115506,4012.7,4010.0,0.8156]
[1734408773555,0.788,4012.5,4010.0,0.8156]
[1734408773861,0.81916141,4012.5,4010.0,0.8156]
[1734408774220,9.738,4012.4,4010.0,0.8156]
[1734408774421,0.788,4012.2,4010.0,0.8156]
[1734408775254,0.788,4012.2,4010.0,1.01681931]
[1734408775558,0.97691619,4012.1,4010.0,1.01681931]
[1734408775866,0.97691619,4012.1,4010.1,0.55]
[1734408778225,0.788,4011.8,4009.4,0.8156]
[1734408778475,0.81916915,4011.7,4009.4,0.8156]
[1734408778761,0.788,4011.7,4009.5,32.63625]
[1734408778937,0.788,4011.7,4009.6,0.23329827]
[1734408779143,0.788,4011.7,4009.7,32.83746931]
[1734408779360,0.788,4011.7,4009.8,32.86954827]
[1734408779523,0.788,4011.7,4009.9,32.86954827]
[1734408779866,0.788,4011.7,4010.0,33.41954827]
[1734408780177,0.788,4011.7,4010.2,0.55]
[1734408780373,0.788,4011.7,4010.4,0.55]
[1734408780538,0.788,4011.7,4010.6,0.55]
[1734408780866,0.788,4011.7,4010.8,3.0]
[1734408781035,0.788,4011.7,4010.9,32.014177]
[1734408781241,0.788,4011.7,4011.0,14.204592]
[1734408781468,0.03115983,4012.5,4009.4,0.8156]
[1734408781469,8.95,4011.5,4009.4,0.8156]
[1734408781779,0.8046,4011.3,4009.0,0.7634]
[1734408783224,0.8046,4011.3,4009.1,0.55]
[1734408783484,0.03116934,4011.2,4009.1,0.55]
[1734408783674,0.8046,4011.1,4009.3,3.55]
[1734408783979,0.8046,4011.1,4009.5,0.55]
[1734408784177,0.8046,4010.9,4009.7,0.55]
[1734408784329,0.03116933,4010.8,4009.8,32.63625]
[1734408785150,0.03116933,4010.8,4009.9,3.0]
[1734408785351,9.7546,4010.7,4010.1,3.0]
[1734408785559,0.8046,4010.6,4010.3,3.0]
[1734408785857,0.8046,4010.4,4008.2,0.7634]
[1734408786182,0.8046,4010.2,4008.2,0.7634]
[1734408786384,0.8046,4010.2,4008.3,32.63625]
[1734408787402,0.8046,4010.2,4008.4,3.0]
[1734408787603,0.8046,4010.2,4008.6,3.0]
[1734408787901,0.8046,4010.2,4008.9,0.55]
[1734408788070,0.8046,4010.2,4009.1,3.55]
[1734408788257,0.8046,4010.2,4009.4,0.55]
[1734408788459,0.8046,4010.2,4009.5,32.63625]
[1734408788660,0.8046,4010.2,4009.6,0.55]
[1734408788891,0.8046,4010.2,4009.7,3.0]
[1734408789200,0.8046,4010.2,4009.9,3.0]
[1734408789499,9.7546,4010.1,4007.8,0.20121931]
[1734408789683,9.7546,4010.1,4008.0,3.0]
[1734408789886,9.7546,4010.1,4008.2,3.0]
[1734408790050,9.7546,4010.1,4008.3,32.63625]
[1734408790253,9.7546,4010.1,4008.4,3.0]
[1734408790497,9.7546,4010.1,4008.6,3.0]
[1734408790656,0.8046,4010.1,4008.8,3.0]
[1734408790858,0.8046,4010.1,4009.0,3.0]
[1734408791051,0.8046,4010.1,4009.1,32.63625]
[1734408791358,0.8046,4010.1,4009.2,3.0]
[1734408791684,0.8046,4010.1,4009.4,3.55]
[1734408791891,0.8046,4010.1,4009.6,3.0]
[1734408792209,0.8046,4010.1,4009.8,3.0]
[1734408792374,0.8046,4010.1,4009.9,25.846147]
[1734408792698,0.8046,4010.1,4010.0,3.0]
[1734408793072,0.8046,4010.1,4010.0,20.284029]
[1734408793406,0.8046,4010.1,4010.0,20.286306]
[1734408793611,0.8046,4010.1,4010.0,17.590229]
[1734408795999,0.8046,4010.1,4010.0,19.3492519]
[1734408797116,0.8046,4010.1,4010.0,17.590229]
[1734408797398,0.8046,4010.1,4010.0,11.241321]
[1734408797571,0.8046,4010.1,4010.0,11.141321]
[1734408798511,0.8046,4010.1,4010.0,9.016685]
[1734408801097,0.8046,4010.1,4009.4,0.55]
[1734408801296,0.8046,4010.1,4009.6,3.0]
[1734408801530,0.8046,4010.1,4009.7,32.63625]
[1734408801939,0.8046,4010.1,4009.8,3.0]
[1734408802139,0.8046,4010.1,4010.0,3.0]
[1734408802358,0.8046,4010.1,4010.0,35.63625]
[1734408805457,0.8046,4010.1,4010.0,8.500253]
[1734408807421,0.7525,4010.5,4010.0,8.500253]
[1734408807624,0.7525,4010.5,4010.2,3.0]
[1734408807845,0.7525,4010.5,4010.4,3.0]
[1734408808056,0.7525,4010.5,4009.5,3.0]
[1734408808255,0.7525,4010.5,4009.7,3.0]
[1734408808432,0.7525,4010.5,4009.9,3.0]
[1734408808639,0.7525,4010.5,4010.1,3.0]
[1734408808839,0.7525,4010.5,4010.2,13.322165]
[1734408809022,0.7525,4010.5,4010.3,3.0]
[1734408809256,0.7525,4010.5,4010.4,7.877826]
[1734408809438,0.70560285,4010.5,4010.4,7.877826]
[1734408810170,0.70560285,4010.5,4010.4,7.527826]
[1734408810868,0.70560285,4010.5,4010.4,7.129132]
[1734408812669,0.70560285,4010.5,4009.3,0.55]
[1734408812873,0.0311711,4010.4,4009.5,0.55]
[1734408813031,0.0311711,4010.4,4009.6,31.260412]
[1734408813226,0.0311711,4010.4,4009.8,3.0]
[1734408813426,0.0311711,4010.4,4010.0,3.0]
[1734408813693,0.0311711,4010.4,4010.2,3.0]
[1734408813987,0.70560285,4010.5,4010.3,3.812258]
[1734408814142,0.70560285,4010.5,4010.4,3.0]
[1734408814540,0.70560285,4010.5,4009.3,0.55]
[1734408814742,0.70560285,4010.5,4009.5,3.55]
[1734408814971,0.70560285,4010.5,4009.7,3.0]
[1734408815173,0.70560285,4010.5,4009.9,3.0]
[1734408815377,0.70560285,4010.5,4010.1,3.0]
[1734408815528,0.70560285,4010.5,4010.2,3.615582]
[1734408815730,0.70560285,4010.5,4010.3,3.0]
[1734408815974,0.70560285,4010.5,4010.3,6.615582]
[1734408816180,0.70560285,4010.5,4010.4,2.005966]
[1734408816401,0.70560285,4010.5,4009.7,26.079022]
[1734408816694,0.70560285,4010.5,4009.8,3.0]
[1734408816903,0.70560285,4010.5,4009.8,27.724459]
[1734408817052,0.70560285,4010.5,4009.9,24.408111]
[1734408817256,0.70560285,4010.5,4010.0,3.0]
[1734408817519,0.70560285,4010.5,4010.0,21.527266]
[1734408817669,0.70560285,4010.5,4010.2,3.0]
[1734408817872,0.70560285,4010.5,4010.4,3.0]
[1734408818197,0.70560285,4010.5,4010.4,6.210414]
[1734408818401,0.70560285,4010.5,4010.4,6.935514]
[1734408819101,0.70560285,4010.5,4010.4,5.374214]
[1734408819263,0.70560285,4010.5,4010.4,2.374214]
[1734408819467,0.70560285,4010.5,4009.8,3.0]
[1734408819707,0.70560285,4010.5,4010.0,3.0]
[1734408820001,0.70560285,4010.5,4009.5,0.55]
[1734408820002,0.70560285,4010.5,4010.2,3.0]
[1734408820153,0.70560285,4010.5,4010.4,3.0]
[1734408820355,0.70560285,4010.5,4010.4,3.348814]
[1734408820558,0.70560285,4010.5,4009.9,3.0]
[1734408820773,0.70560285,4010.5,4010.1,3.0]
[1734408821003,0.70560285,4010.5,4010.3,3.0]
[1734408821206,0.70560285,4010.5,4010.4,7.945266]
[1734408821512,0.70560285,4010.5,4010.4,3.0]
[1734408821661,0.70560285,4010.5,4010.4,10.945266]
[1734408823059,0.70560285,4010.5,4009.6,0.7896]
[1734408823309,0.70560285,4010.5,4009.8,3.55]
[1734408823507,0.70560285,4010.5,4010.0,3.0]
[1734408823660,0.70560285,4010.5,4010.2,3.0]
[1734408823867,0.70560285,4010.5,4010.4,3.0]
[1734408824089,0.70560285,4010.5,4010.4,15.291958]
[1734408824402,0.70560285,4010.5,4010.4,12.574426]
[1734408825440,0.70560285,4010.5,4010.4,11.80757]
[1734408829341,0.70560285,4010.5,4010.4,8.854543]
[1734408833367,0.7905,4011.0,4010.5,3.0]
[1734408833714,0.7905,4011.0,4009.7,0.55]
[1734408833919,0.7905,4011.0,4010.7,3.0]
[1734408834320,0.7905,4011.0,4009.8,0.13396]
[1734408834522,0.7905,4011.0,4010.7,3.0]
[1734408834865,0.7905,4011.0,4010.9,3.0]
[1734408835063,0.7905,4011.0,4010.9,8.749914]
[1734408835263,0.7905,4011.0,4010.9,5.605914]
[1734408835432,0.7905,4011.0,4010.9,3.0]
[1734408835635,0.7905,4011.0,4010.7,3.0]
[1734408836349,0.7905,4011.0,4009.8,0.13396]
[1734408836567,0.7905,4011.0,4010.7,3.0]
[1734408836766,1.76455,4011.0,4009.8,0.13396]
[1734408837355,1.76455,4011.0,4010.7,3.0]
[1734408837816,1.76455,4011.0,4010.9,3.0]
[1734408838145,1.76455,4011.0,4010.9,8.372404]
[1734408838352,1.76455,4011.0,4010.9,9.134918]
[1734408838724,1.76455,4011.0,4010.9,8.109248]
[1734408839157,1.76455,4011.0,4010.9,6.205634]
[1734408839521,1.76455,4011.0,4010.7,3.0]
[1734408840320,1.76455,4011.0,4009.8,0.13396]
[1734408840525,1.76455,4011.0,4009.9,0.147356]
[1734408840724,1.76455,4011.0,4010.7,3.0]
[1734408841655,1.76455,4011.0,4010.9,3.0]
[1734408841923,1.76455,4011.0,4010.9,5.577525]
[1734408843073,1.76455,4011.0,4010.9,8.075134]
[1734408843642,0.7905,4011.0,4010.9,8.075134]
[1734408843972,0.7905,4011.0,4009.9,0.147356]
[1734408844142,0.7905,4011.0,4010.7,3.0]
[1734408844872,0.7905,4011.0,4010.9,3.0]
[1734408845075,0.7905,4011.0,4010.7,3.0]
[1734408845278,0.7905,4011.0,4010.8,2.036729]
[1734408845573,0.7905,4011.0,4010.1,3.0]
[1734408845756,0.7905,4011.0,4010.3,3.0]
[1734408845944,0.7905,4011.0,4010.4,18.977801]
[1734408846266,0.7905,4011.0,4010.5,17.390402]
[1734408846490,0.7905,4011.0,4010.6,15.110268]
[1734408846672,0.7905,4011.0,4010.6,3.0]
[1734408846827,0.7905,4011.0,4010.7,10.741262]
[1734408847033,0.7905,4011.0,4010.8,3.0]
[1734408847372,0.7905,4011.0,4009.9,0.147356]
[1734408847575,0.7905,4011.0,4010.1,3.0]
[1734408847799,0.7905,4011.0,4010.3,3.0]
[1734408847946,0.7905,4011.0,4010.5,3.0]
[1734408848144,0.7905,4011.0,4010.7,3.0]
[1734408848346,0.7905,4011.0,4010.9,3.0]
[1734408848549,0.7905,4011.0,4010.9,7.277173]
[1734408848823,0.7905,4011.0,4010.9,7.232173]
[1734408855882,0.7905,4011.0,4010.9,2.035085]
[1734408856236,0.7905,4011.0,4010.1,3.0]
[1734408856584,0.7905,4011.0,4010.3,3.0]
[1734408856789,0.7905,4011.0,4010.5,3.0]
[1734408857081,0.7905,4011.0,4010.7,3.0]
[1734408857381,0.7905,4011.0,4010.9,3.0]
[1734408857590,0.7905,4011.0,4009.8,3.0]
[1734408857893,0.7905,4011.0,4010.0,3.0]
[1734408858089,0.7905,4011.0,4010.7,3.0]
[1734408858848,0.7905,4011.0,4009.9,0.43396]
[1734408859050,0.7905,4011.0,4009.7,0.55]
[1734408859448,0.7905,4011.0,4010.7,3.0]
[1734408859669,0.7905,4011.0,4009.7,0.79621931]
[1734408860541,0.7905,4011.0,4010.7,3.0]
[1734408860999,0.7905,4011.0,4009.7,0.79621931]
[1734408861150,0.7905,4011.0,4010.7,3.0]
[1734408861352,0.7905,4011.0,4009.8,0.15858193]
[1734408863551,0.7905,4011.0,4010.7,3.0]
[1734408863807,0.7905,4011.0,4009.8,0.15858193]
[1734408865597,0.7905,4011.0,4010.7,3.0]
[1734408865795,1.86604482,4011.0,4009.8,0.15858193]
[1734408866094,0.7905,4011.0,4010.7,3.0]
[1734408866465,0.7905,4011.0,4009.8,0.15858193]
[1734408866671,0.7905,4011.0,4010.7,3.0]
[1734408867373,0.7905,4011.0,4009.8,0.15858193]
[1734408867591,0.7905,4011.0,4010.7,3.0]
[1734408868367,0.7905,4011.0,4009.8,0.15858193]
[1734408868579,0.7905,4011.0,4010.7,3.0]
[1734408869369,0.7905,4011.0,4009.9,0.14981819]
[1734408872468,0.7905,4011.0,4010.0,0.55]
[1734408873084,0.03116741,4010.9,4009.2,0.7626]
[1734408873289,0.8102,4010.7,4009.2,0.7626]
[1734408874084,0.85659528,4010.6,4009.2,0.7626]
[1734408874301,0.8102,4010.7,4009.2,0.7626]
[1734408874471,0.84137426,4010.7,4009.2,0.7626]
[1734408875097,0.8102,4010.7,4009.2,0.7626]
[1734408875309,0.2145619,4010.6,4009.2,0.7626]
[1734408876189,0.24573617,4010.6,4009.2,0.7626]
[1734408877172,0.8102,4010.5,4008.6,0.7626]
[1734408877372,0.03117429,4010.4,4008.6,0.7626]
[1734408877617,0.03117429,4010.4,4008.7,0.55]
[1734408877816,0.03117429,4010.4,4009.8,3.0]
[1734408878396,0.8102,4010.5,4008.9,0.55]
[1734408878706,8.95,4010.4,4009.8,3.0]
[1734408878875,0.99747619,4010.3,4008.9,0.55]
[1734408879277,0.99747619,4010.3,4009.8,3.0]
[1734408880391,0.99747619,4010.3,4008.9,0.55]
[1734408880808,0.99747619,4010.3,4009.8,3.0]
[1734408881676,9.94747619,4010.3,4008.9,0.55]
[1734408881877,9.94747619,4010.3,4009.1,3.0]
[1734408882076,8.95,4010.3,4009.3,3.0]
[1734408882307,8.95,4010.3,4009.5,3.0]
[1734408882623,8.95,4010.3,4009.6,32.63625]
[1734408882776,8.95,4010.3,4009.6,3.0]
[1734408882977,8.95,4010.3,4009.8,3.0]
[1734408883185,8.95,4010.3,4010.0,3.0]
[1734408883527,0.8102,4010.5,4010.2,3.0]
[1734408883703,0.8102,4010.5,4010.4,3.0]
[1734408883904,0.8102,4010.5,4010.4,14.710202]
[1734408884108,0.8102,4010.5,4010.4,6.9779]
[1734408884678,0.60719703,4010.5,4010.3,3.0]
[1734408885191,0.60719703,4010.5,4009.5,0.55]
[1734408885564,0.60719703,4010.5,4010.3,3.0]
[1734408886030,0.60719703,4010.5,4009.6,0.13126]
[1734408886191,0.60719703,4010.5,4010.3,3.0]
[1734408886777,0.60719703,4010.5,4010.4,2.002]
[1734408887124,0.60719703,4010.5,4009.6,0.13126]
[1734408887282,0.60719703,4010.5,4010.3,3.0]
[1734408888124,0.60719703,4010.5,4010.4,2.457495]
[1734408888521,0.60719703,4010.5,4010.3,3.0]
[1734408888830,0.60719703,4010.5,4010.4,3.0]
[1734408889048,0.60719703,4010.5,4009.6,0.13126]
[1734408889184,0.60719703,4010.5,4010.3,3.0]
[1734408889395,0.60719703,4010.5,4009.5,0.55]
[1734408889735,0.60719703,4010.5,4009.7,3.0]
[1734408890036,0.60719703,4010.5,4009.9,3.0]
[1734408890241,0.60719703,4010.5,4010.0,27.534846]
[1734408890542,0.60719703,4010.5,4010.1,3.0]
[1734408890845,0.60719703,4010.5,4010.1,24.835433]
[1734408891133,0.60719703,4010.5,4010.3,3.0]
[1734408891339,0.60719703,4010.5,4010.4,9.49403]
[1734408891691,0.60719703,4010.5,4009.5,0.55]
[1734408891916,0.60719703,4010.5,4009.6,0.13126]
[1734408892470,0.60719703,4010.5,4010.3,3.0]
[1734408892625,0.60719703,4010.5,4009.6,0.13126]
[1734408893131,0.60719703,4010.5,4010.3,3.0]
[1734408893324,0.60719703,4010.5,4009.6,0.13126]
[1734408893524,0.60719703,4010.5,4010.3,3.0]
[1734408893721,0.60719703,4010.5,4009.7,0.144386]
[1734408894342,0.60719703,4010.5,4010.3,3.0]
[1734408894925,0.60719703,4010.5,4009.7,0.144386]
[1734408895234,0.60719703,4010.5,4010.3,3.0]
[1734408895443,0.60719703,4010.5,4009.7,0.144386]
[1734408895754,0.60719703,4010.5,4009.9,3.0]
[1734408895919,0.60719703,4010.5,4010.1,3.0]
[1734408896124,0.60719703,4010.5,4010.3,3.0]
[1734408896355,0.60719703,4010.5,4010.4,12.145048]
[1734408897533,0.60719703,4010.5,4010.4,11.615558]
[1734408898141,8.95,4010.8,4010.5,3.0]
[1734408898358,8.95,4010.8,4010.7,3.0]
[1734408898672,8.95,4010.8,4010.7,9.945788]
[1734408898973,8.95,4010.8,4010.7,3.0]
[1734408899134,8.95,4010.8,4010.7,13.698578]
[1734408899332,8.95,4010.8,4010.7,9.022202]
[1734408899676,0.97572,4010.8,4010.3,3.0]
[1734408899841,0.8072,4010.9,4009.5,0.55]
[1734408900365,0.8072,4010.9,4009.5,0.79621931]
[1734408900839,0.7689,4011.3,4009.8,0.777]
[1734408901043,3.10693683,4012.6,4009.8,0.777]
[1734408901044,0.7689,4011.8,4010.0,3.55]
[1734408901240,0.7689,4011.8,4010.4,0.55]
[1734408901475,0.7689,4011.8,4010.7,0.55]
[1734408901686,0.7689,4011.8,4010.6,3.777]